fUST/lending_fUST_20250120
["ID","MTS","AMOUNT","RATE_DAILY","PERIOD"]
[349628985,1737335448086,-905.72,0.00022191,3]
[349628986,1737335448096,-500.0,0.00022191,3]
[349628987,1737335448110,-3665.47,0.00022191,3]
[349628988,1737335448122,-500.0,0.00022191,3]
[349628989,1737335448132,-500.0,0.00022191,3]
[349628990,1737335448141,-500.0,0.00022191,3]
[349628991,1737335448151,-1962.94,0.00022191,3]
[349628992,1737335448161,-500.0,0.00022191,3]
[349628993,1737335448171,-500.0,0.00022191,3]
[349628994,1737335448180,-500.0,0.00022191,3]
[349628995,1737335448190,-500.0,0.00022191,3]
[349628996,1737335448201,-1127.45,0.00022191,3]
[349628997,1737335448212,-500.0,0.00022191,3]
[349628998,1737335448224,-500.0,0.00022191,3]
[349628999,1737335448234,-1140.03,0.00022191,3]
[349629000,1737335448244,-500.0,0.00022191,3]
[349629001,1737335448254,-547.12,0.00022191,3]
[349629002,1737335448264,-1745.81,0.00022191,3]
[349629003,1737335448275,-500.0,0.00022191,3]
[349629004,1737335448285,-500.0,0.00022191,3]
[349629005,1737335448295,-500.0,0.00022191,3]
[349629006,1737335448305,-500.0,0.00022191,3]
[349629007,1737335448316,-584.05806523,0.00022273,2]
[349629008,1737335448326,-500.0,0.00022283,2]
[349629009,1737335448337,-486.15627763,0.00022283,2]
[349629010,1737335448348,-215.2936258,0.00022283,2]
[349629011,1737335448364,-500.0,0.00022283,2]
[349629012,1737335448375,-500.0,0.00022283,2]
[349629013,1737335448386,-4585.242279,0.000223,2]
[349629014,1737335448397,-500.0,0.00022307,2]
[349629015,1737335448410,-500.59803229,0.00022313,2]
[349629016,1737335448431,-500.0,0.00022316,2]
[349629017,1737335448444,-394.80844747,0.00022316,2]
[349629018,1737335448454,-500.0,0.00022316,2]
[349629019,1737335448465,-500.0,0.00022326,3]
[349629020,1737335448475,-500.0,0.00022327,3]
[349629021,1737335448485,-500.0,0.00022328,3]
[349629022,1737335448503,-500.0,0.00022328,2]
[349629023,1737335448518,-3141.75,0.00022328,3]
[349629024,1737335448528,-691.03,0.00022328,3]
[349629025,1737335448539,-500.0,0.00022328,3]
[349629026,1737335448550,-905.72,0.00022328,3]
[349629027,1737335448560,-500.0,0.00022328,3]
[349629028,1737335448570,-3665.47,0.00022328,3]
[349629029,1737335448580,-500.0,0.00022328,3]
[349629030,1737335448590,-500.0,0.00022328,3]
[349629031,1737335448601,-532.58,0.00022328,3]
[349629032,1737335448615,-1962.94,0.00022328,3]
[349629033,1737335448627,-500.0,0.00022328,3]
[349629034,1737335448637,-559.78,0.00022328,3]
[349629035,1737335448648,-500.0,0.00022328,3]
[349629036,1737335448659,-1127.45,0.00022328,3]
[349629037,1737335448670,-500.0,0.00022328,3]
[349629038,1737335448680,-500.0,0.00022328,3]
[349629039,1737335448690,-1140.03,0.00022328,3]
[349629040,1737335448699,-547.12,0.00022328,3]
[349629041,1737335448710,-1745.81,0.00022328,3]
[349629042,1737335448719,-500.0,0.00022328,3]
[349629043,1737335448730,-500.0,0.00022328,3]
[349629044,1737335448740,-500.0,0.00022328,3]
[349629045,1737335448750,-500.0,0.00022352,2]
[349629046,1737335448761,-500.0,0.00022352,2]
[349629047,1737335448771,-500.0,0.00022368,2]
[349629048,1737335448781,-157.735361,0.00022396,2]
[349629049,1737335448792,-566.03825667,0.00022409,2]
[349629050,1737335448802,-608.24226547,0.00022464,3]
[349629051,1737335448812,-500.0,0.00022465,3]
[349629052,1737335448823,-500.0,0.00022465,2]
[349629053,1737335448833,-3141.75,0.00022465,3]
[349629054,1737335448844,-691.03,0.00022465,3]
[349629055,1737335448857,-500.0,0.00022465,3]
[349629056,1737335448870,-905.72,0.00022465,3]
[349629057,1737335448881,-3665.47,0.00022465,3]
[349629058,1737335448892,-500.0,0.00022465,3]
[349629059,1737335448903,-500.0,0.00022465,3]
[349629060,1737335448914,-1962.94,0.00022465,3]
[349629061,1737335448924,-500.0,0.00022465,3]
[349629062,1737335448942,-1127.45,0.00022465,3]
[349629063,1737335448959,-500.0,0.00022465,3]
[349629064,1737335448975,-500.0,0.00022465,3]
[349629065,1737335448992,-1140.03,0.00022465,3]
[349629066,1737335449008,-547.12,0.00022465,3]
[349629067,1737335449024,-1745.81,0.00022465,3]
[349629068,1737335449036,-500.0,0.00022465,3]
[349629069,1737335449048,-500.0,0.00022465,3]
[349629070,1737335449063,-935.44666968,0.00022484,2]
[349629071,1737335449078,-1045.31,0.000225,2]
[349629072,1737335449092,-500.0,0.00022521,2]
[349629073,1737335449107,-485.66478432,0.00022521,2]
[349629074,1737335449121,-157.735361,0.00022521,2]
[349629075,1737335449138,-213.9167338,0.00022528,2]
[349629076,1737335449152,-642.98576511,0.00022528,2]
[349629077,1737335449167,-603.01419352,0.00022528,2]
[349629078,1737335449181,-500.0,0.00022528,2]
[349629079,1737335449197,-500.0,0.00022528,2]
[349629080,1737335449212,-500.0,0.00022602,3]
[349629081,1737335449225,-368.45,0.00022602,2]
[349629082,1737335449239,-3141.75,0.00022602,3]
[349629083,1737335449255,-691.03,0.00022602,3]
[349629084,1737335449269,-500.0,0.00022602,3]
[349629085,1737335449284,-905.72,0.00022602,3]
[349629086,1737335449299,-3665.47,0.00022602,3]
[349629087,1737335449318,-500.0,0.00022602,3]
[349629088,1737335449331,-500.0,0.00022602,3]
[349629089,1737335449345,-1962.94,0.00022602,3]
[349629090,1737335449359,-500.0,0.00022602,3]
[349629091,1737335449371,-1127.45,0.00022602,3]
[349629092,1737335449383,-500.0,0.00022602,3]
[349629093,1737335449397,-1140.03,0.00022602,3]
[349629094,1737335449410,-547.12,0.00022602,3]
[349629095,1737335449424,-1745.81,0.00022602,3]
[349629096,1737335449438,-500.0,0.00022602,3]
[349629097,1737335449452,-157.735361,0.00022647,2]
[349629098,1737335449467,-500.0,0.00022739,3]
[349629099,1737335449481,-3141.75,0.00022739,3]
[349629100,1737335449496,-691.03,0.00022739,3]
[349629101,1737335449511,-500.0,0.00022739,3]
[349629102,1737335449526,-905.72,0.00022739,3]
[349629103,1737335449539,-3665.47,0.00022739,3]
[349629104,1737335449553,-500.0,0.00022739,3]
[349629105,1737335449565,-500.0,0.00022739,3]
[349629106,1737335449576,-1962.94,0.00022739,3]
[349629107,1737335449586,-500.0,0.00022739,3]
[349629108,1737335449597,-1127.45,0.00022739,3]
[349629109,1737335449612,-500.0,0.00022739,3]
[349629110,1737335449626,-1140.03,0.00022739,3]
[349629111,1737335449641,-547.12,0.00022739,3]
[349629112,1737335449656,-1745.81,0.00022739,3]
[349629113,1737335449669,-500.0,0.00022739,3]
[349629114,1737335449680,-157.735361,0.00022773,2]
[349629115,1737335449692,-3669.0,0.00022776,2]
[349629116,1737335449704,-638.721,0.000228,2]
[349629117,1737335449717,-935.44666968,0.00022817,2]
[349629118,1737335449729,-1000.0,0.00022831,2]
[349629119,1737335449743,-33830.96826262,0.00022869,3]
[349629120,1737335449755,-500.0,0.00022876,3]
[349629121,1737335449768,-3141.75,0.00022876,3]
[349629122,1737335449780,-691.03,0.00022876,3]
[349629123,1737335449791,-500.0,0.00022876,3]
[349629124,1737335449803,-905.72,0.00022876,3]
[349629125,1737335449816,-3665.47,0.00022876,3]
[349629126,1737335449829,-500.0,0.00022876,3]
[349629127,1737335449842,-500.0,0.00022876,3]
[349629128,1737335449861,-1962.94,0.00022876,3]
[349629129,1737335449873,-500.0,0.00022876,3]
[349629130,1737335449888,-1127.45,0.00022876,3]
[349629131,1737335449903,-500.0,0.00022876,3]
[349629132,1737335449916,-1140.03,0.00022876,3]
[349629133,1737335449929,-547.12,0.00022876,3]
[349629134,1737335449944,-1745.81,0.00022876,3]
[349629135,1737335449958,-500.0,0.00022876,3]
[349629136,1737335449971,-157.735361,0.00022898,2]
[349629137,1737335449984,-925.07261517,0.000229,3]
[349629138,1737335449997,-512.35044576,0.000229,2]
[349629139,1737335450010,-1000.0,0.00022916,2]
[349629140,1737335450023,-925.07261507,0.00022969,3]
[349629141,1737335450036,-7438.69753278,0.00023,3]
[349629142,1737335450049,-500.0,0.00023013,3]
[349629143,1737335450062,-3141.75,0.00023013,3]
[349629144,1737335450074,-691.03,0.00023013,3]
[349629145,1737335450087,-500.0,0.00023013,3]
[349629146,1737335450099,-905.72,0.00023013,3]
[349629147,1737335450119,-3665.47,0.00023013,3]
[349629148,1737335450135,-500.0,0.00023013,3]
[349629149,1737335450147,-500.0,0.00023013,3]
[349629150,1737335450159,-1962.94,0.00023013,3]
[349629151,1737335450171,-500.0,0.00023013,3]
[349629152,1737335450183,-1127.45,0.00023013,3]
[349629153,1737335450196,-500.0,0.00023013,3]
[349629154,1737335450212,-1140.03,0.00023013,3]
[349629155,1737335450224,-547.12,0.00023013,3]
[349629156,1737335450236,-1745.81,0.00023013,3]
[349629157,1737335450248,-500.0,0.00023013,3]
[349629158,1737335450261,-157.735361,0.00023024,2]
[349629159,1737335450273,-925.07261507,0.00023038,3]
[349629160,1737335450285,-925.07261507,0.00023107,3]
[349629161,1737335450297,-500.0,0.0002315,3]
[349629162,1737335450309,-3141.75,0.0002315,3]
[349629163,1737335450321,-691.03,0.0002315,3]
[349629164,1737335450332,-500.0,0.0002315,3]
[349629165,1737335450345,-905.72,0.0002315,3]
[349629166,1737335450359,-3665.47,0.0002315,3]
[349629167,1737335450371,-500.0,0.0002315,3]
[349629168,1737335450383,-500.0,0.0002315,3]
[349629169,1737335450395,-1962.94,0.0002315,3]
[349629170,1737335450407,-500.0,0.0002315,3]
[349629171,1737335450586,-1127.45,0.0002315,3]
[349629172,1737335450596,-500.0,0.0002315,3]
[349629173,1737335450610,-1140.03,0.0002315,3]
[349629174,1737335450620,-547.12,0.0002315,3]
[349629175,1737335450630,-1745.81,0.0002315,3]
[349629176,1737335450639,-500.0,0.0002315,3]
[349629177,1737335450648,-935.44666968,0.0002315,2]
[349629178,1737335450658,-7438.69753278,0.00023159,2]
[349629179,1737335450667,-2063.0,0.00023167,2]
[349629180,1737335450679,-1616.852,0.00023167,2]
[349629181,1737335450690,-925.07261507,0.00023176,3]
[349629182,1737335450701,-925.07261507,0.00023245,3]
[349629183,1737335450709,-500.0,0.00023287,3]
[349629184,1737335450719,-3141.75,0.00023287,3]
[349629185,1737335450728,-691.03,0.00023287,3]
[349629186,1737335450738,-500.0,0.00023287,3]
[349629187,1737335450749,-905.72,0.00023287,3]
[349629188,1737335450764,-3665.47,0.00023287,3]
[349629189,1737335450774,-500.0,0.00023287,3]
[349629190,1737335450784,-500.0,0.00023287,3]
[349629191,1737335450794,-1962.94,0.00023287,3]
[349629192,1737335450804,-500.0,0.00023287,3]
[349629193,1737335450814,-1127.45,0.00023287,3]
[349629194,1737335450823,-500.0,0.00023287,3]
[349629195,1737335450834,-1140.03,0.00023287,3]
[349629196,1737335450843,-547.12,0.00023287,3]
[349629197,1737335450853,-1745.81,0.00023287,3]
[349629198,1737335450868,-500.0,0.00023287,3]
[349629199,1737335450879,-151.0,0.000233,5]
[349629200,1737335450888,-925.07261507,0.00023314,3]
[349629201,1737335450898,-925.07261507,0.00023383,3]
[349629202,1737335450908,-500.0,0.00023424,3]
[349629203,1737335450917,-3141.75,0.00023424,3]
[349629204,1737335450927,-691.03,0.00023424,3]
[349629205,1737335450937,-500.0,0.00023424,3]
[349629206,1737335450946,-905.72,0.00023424,3]
[349629207,1737335450956,-3665.47,0.00023424,3]
[349629208,1737335450966,-500.0,0.00023424,3]
[349629209,1737335450977,-500.0,0.00023424,3]
[349629210,1737335450987,-1962.94,0.00023424,3]
[349629211,1737335450997,-500.0,0.00023424,3]
[349629212,1737335451007,-1127.45,0.00023424,3]
[349629213,1737335451017,-500.0,0.00023424,3]
[349629214,1737335451027,-1140.03,0.00023424,3]
[349629215,1737335451037,-547.12,0.00023424,3]
[349629216,1737335451047,-1745.81,0.00023424,3]
[349629217,1737335451057,-500.0,0.00023424,3]
[349629218,1737335451067,-500.0,0.00023451,2]
[349629219,1737335451076,-161.449805,0.00023451,2]
[349629220,1737335451086,-925.07261507,0.00023452,3]
[349629221,1737335451095,-151.0,0.000235,5]
[349629222,1737335451106,-925.07261507,0.00023521,3]
[349629223,1737335451120,-500.0,0.00023561,3]
[349629224,1737335451129,-3141.75,0.00023561,3]
[349629225,1737335451139,-691.03,0.00023561,3]
[349629226,1737335451150,-586.66,0.00023561,3]
[349629227,1737335451159,-905.72,0.00023561,3]
[349629228,1737335451170,-3665.47,0.00023561,3]
[349629229,1737335451180,-500.0,0.00023561,3]
[349629230,1737335451190,-500.0,0.00023561,3]
[349629231,1737335451200,-1962.94,0.00023561,3]
[349629232,1737335451210,-500.0,0.00023561,3]
[349629233,1737335451220,-1127.45,0.00023561,3]
[349629234,1737335451230,-500.0,0.00023561,3]
[349629235,1737335451239,-1140.03,0.00023561,3]
[349629236,1737335451249,-547.12,0.00023561,3]
[349629237,1737335451259,-151.0,0.00023561,7]
[349629238,1737335451270,-1745.81,0.00023561,3]
[349629239,1737335451279,-500.0,0.00023561,3]
[349629240,1737335451289,-925.07261507,0.0002359,3]
[349629241,1737335451298,-925.07261507,0.00023659,3]
[349629242,1737335451307,-1346.57127439,0.00023698,3]
[349629243,1737335451317,-151.0,0.00023698,7]
[349629244,1737335451327,-151.0,0.00023698,7]
[349629245,1737335451337,-151.0,0.00023698,7]
[349629246,1737335451346,-151.187869,0.00023698,7]
[349629247,1737335451360,-151.0,0.00023698,7]
[349629248,1737335451370,-151.0,0.00023698,7]
[349629249,1737335451380,-151.0,0.00023698,7]
[349629250,1737335451390,-151.0,0.00023698,7]
[349629251,1737335451399,-500.0,0.00023698,3]
[349629252,1737335451409,-151.425191,0.00023698,7]
[349629253,1737335451420,-151.0,0.00023698,7]
[349629254,1737335451430,-151.0,0.00023698,7]
[349629255,1737335451440,-151.0,0.00023698,7]
[349629256,1737335451450,-151.0,0.00023698,7]
[349629257,1737335451459,-151.0,0.00023698,7]
[349629258,1737335451469,-151.0,0.00023698,7]
[349629259,1737335451478,-284.048919,0.00023698,7]
[349629260,1737335451489,-284.048919,0.00023698,7]
[349629261,1737335451498,-151.0,0.00023698,7]
[349629262,1737335451508,-151.0,0.00023698,7]
[349629263,1737335451518,-151.0,0.00023698,7]
[349629264,1737335451527,-151.0,0.00023698,7]
[349629265,1737335451537,-151.0,0.00023698,7]
[349629266,1737335451547,-151.0,0.00023698,7]
[349629267,1737335451556,-364.085481,0.00023698,7]
[349629268,1737335451572,-277.06013313,0.00023698,7]
[349629269,1737335626286,2124.0133794,0.00023621,120]
[349629273,1737336197214,164.642151,0.00013973,2]
[349629363,1737336632170,-300.0,0.00019999,2]
[349629365,1737336632183,-1697.06,0.0002,2]
[349629372,1737336632243,-15377.73500851,0.0002,2]
[349629634,1737336638222,-4805.20252009,0.0002,2]
[349629636,1737336638234,-12700.43097962,0.0002,2]
[349629638,1737336638244,-350.79250113,0.00020849,2]
[349629640,1737336638253,-174.236889,0.00020949,2]
[349629642,1737336638263,-350.79250113,0.0002132,2]
[349629644,1737336638272,-361.24135533,0.00021521,2]
[349629646,1737336638281,-420.0,0.00021777,2]
[349629647,1737336638291,-29.25769811,0.00021791,2]
[349630352,1737336646203,-321.53480302,0.00021791,2]
[349630354,1737336646215,-157.77,0.00021917,2]
[349630356,1737336646225,-500.0,0.00021917,3]
[349630358,1737336646236,-384.12416842,0.00021917,3]
[349630634,1737337195896,165.190225,0.00013973,2]
[349630636,1737337503145,203.0,0.000167,2]
[349630637,1737337511028,8632.2009436,0.00023624,120]
[349630638,1737337642500,-160.0,0.00024094,120]
[349630639,1737337642524,-160.0,0.0002424,120]
[349630678,1737337838296,-170.05380415,0.00021081,2]
[349630679,1737337838305,-196.84678371,0.00021081,2]
[349630680,1737337838316,-205.2310748,0.00021136,2]
[349630681,1737337838326,-2012.04379827,0.00021181,2]
[349630682,1737337838336,-300.0,0.00021181,2]
[349630683,1737337838346,-78.16720047,0.00021182,2]
[349630903,1737337846398,-378.6421456,0.00021182,2]
[349632093,1737338060780,200.0,0.00024246,120]
[349632096,1737338082710,165.16021,0.00013973,2]
[349632100,1737338992841,165.030361,0.00013973,2]
[349632152,1737339032540,-606.93284863,0.000186,3]
[349632154,1737339032550,-299.05448802,0.00018692,2]
[349632156,1737339032560,-150.16278576,0.000187,2]
[349632158,1737339032569,-1211.0995788,0.00019071,2]
[349632160,1737339032579,-175.6104137,0.00019178,2]
[349632162,1737339032590,-195.2415395,0.0001933,2]
[349632164,1737339032599,-300.0,0.00019755,2]
[349632165,1737339032608,-4825.2153185,0.00019756,5]
[349632166,1737339032618,-2383.50352428,0.00019756,5]
[349632167,1737339032629,-4096.2653566,0.00019756,5]
[349632168,1737339032641,-8606.05336275,0.00019756,5]
[349632169,1737339032652,-2151.02344522,0.00019756,5]
[349632170,1737339032664,-883.45602944,0.00019756,5]
[349632171,1737339032675,-444.85,0.00019756,5]
[349632266,1737339038352,-3133.03821705,0.00019756,5]
[349632268,1737339038363,-2474.60280743,0.00019758,2]
[349632270,1737339038373,-152.0,0.00020169,2]
[349632272,1737339038383,-163.252,0.00020181,2]
[349632274,1737339038393,-8985.03014966,0.00020181,2]
[349632276,1737339038405,-605.0576069,0.00020181,2]
[349632300,1737339038615,-1028.30352142,0.00020181,2]
[349632302,1737339038628,-277.46854865,0.00020181,2]
[349632304,1737339038641,-14004.14017337,0.00020181,2]
[349632306,1737339038651,-192.0,0.00020623,2]
[349632308,1737339038661,-3354.0,0.00020778,2]
[349632309,1737339038671,-196.84678371,0.00020869,2]
[349632310,1737339038681,-1181.84695047,0.000209,2]
[349632312,1737339038691,-736.55754332,0.0002093,2]
[349632313,1737339038700,-309.72951327,0.00021,7]
[349632326,1737339038902,-1328.85440398,0.00021033,2]
[349632328,1737339038923,-8243.63075679,0.00021033,2]
[349632330,1737339038936,-13.59782702,0.00021033,2]
[349632332,1737339038945,-965.15612573,0.00021038,2]
[349632333,1737339038957,-216.69082462,0.00021038,2]
[349632335,1737339038967,-1181.84695035,0.00021176,2]
[349632337,1737339038976,-1090.97752903,0.00021314,2]
[349632338,1737339038988,-90.86942132,0.00021314,2]
[349632340,1737339038997,-471.90353395,0.00021402,2]
[349632342,1737339039008,-210.80139793,0.00021452,2]
[349632344,1737339039020,-413.300005,0.00021452,2]
[349632345,1737339039031,-557.74554742,0.00021452,2]
[349632347,1737339039041,-420.0,0.00021517,2]
[349632349,1737339039051,-1102.38549039,0.0002159,2]
[349632351,1737339039062,-79.46145996,0.0002159,2]
[349632352,1737339039072,-1181.84695035,0.00021728,3]
[349632354,1737339039082,-166.2222661,0.00021817,2]
[349632356,1737339039091,-416.21852121,0.00021826,2]
[349632357,1737339039101,-1181.84695035,0.00021866,3]
[349632359,1737339039110,-2016.0667619,0.000219,4]
[349632361,1737339039119,-500.0,0.00021917,3]
[349632363,1737339039129,-500.0,0.00021917,2]
[349632364,1737339039138,-510.69554883,0.00021917,3]
[349632366,1737339039147,-722.743666,0.00021917,2]
[349632368,1737339039157,-511.838527,0.00021917,2]
[349632369,1737339039167,-722.743666,0.00021917,2]
[349632371,1737339039177,-511.838527,0.00021917,2]
[349632373,1737339039186,-500.0,0.00021917,2]
[349632375,1737339039196,-199.64877971,0.00021917,3]
[349632376,1737339039206,-168.46713089,0.00021917,3]
[349632378,1737339039216,-500.0,0.00021917,3]
[349632380,1737339039226,-696.9906475,0.00021917,30]
[349632381,1737339039238,-500.0,0.00021917,3]
[349632383,1737339039248,-1285.322888,0.00021917,2]
[349632385,1737339039258,-1285.322888,0.00021917,2]
[349632386,1737339039268,-4790.88,0.00021917,3]
[349632388,1737339039279,-519.48440098,0.00021917,3]
[349632390,1737339039296,-500.0,0.00021917,3]
[349632392,1737339039309,-516.39449759,0.00021917,3]
[349632393,1737339039319,-526.12859053,0.00021917,3]
[349632395,1737339039329,-151.0,0.00021917,2]
[349632397,1737339039339,-1053.65,0.00021917,3]
[349632398,1737339039351,-500.0,0.00021917,3]
[349632400,1737339039363,-500.0,0.00021917,3]
[349632402,1737339039375,-456.626607,0.00021917,2]
[349632404,1737339039385,-153.580681,0.00021917,2]
[349632405,1737339039396,-518.35569057,0.00021917,3]
[349632407,1737339039406,-500.0,0.00021917,3]
[349632409,1737339039415,-456.626607,0.00021917,2]
[349632410,1737339039424,-510.46515737,0.00021917,3]
[349632412,1737339039434,-500.0,0.00021917,3]
[349632414,1737339039444,-151.0,0.00021917,2]
[349632416,1737339039454,-500.0,0.00021917,3]
[349632417,1737339039463,-503.60663101,0.00021917,3]
[349632419,1737339039472,-500.0,0.00021917,3]
[349632421,1737339039482,-2069.76,0.00021917,3]
[349632423,1737339039491,-152.160663,0.00021917,2]
[349632424,1737339039501,-504.40760369,0.00021917,3]
[349632426,1737339039510,-500.0,0.00021917,3]
[349632428,1737339039520,-1950.5,0.00021917,3]
[349632429,1737339039530,-500.0,0.00021917,3]
[349632431,1737339039539,-500.0,0.00021917,3]
[349632433,1737339039549,-151.0,0.00021917,2]
[349632434,1737339039558,-616.07,0.00021917,3]
[349632436,1737339039567,-151.0,0.00021917,2]
[349632438,1737339039577,-500.0,0.00021917,3]
[349632440,1737339039587,-1203.3,0.00021917,3]
[349632441,1737339039597,-500.0,0.00021917,3]
[349632443,1737339039607,-539.36357994,0.00021917,3]
[349632445,1737339039617,-293.432388,0.00021917,2]
[349632446,1737339039626,-954.771716,0.00021917,2]
[349632448,1737339039636,-293.432388,0.00021917,2]
[349632450,1737339039645,-954.771716,0.00021917,2]
[349632451,1737339039654,-706.26185,0.00021917,2]
[349632453,1737339039664,-706.26185,0.00021917,2]
[349632455,1737339039674,-151.0,0.00021917,2]
[349632457,1737339039683,-500.0,0.00021917,3]
[349632458,1737339039692,-151.0,0.00021917,2]
[349632460,1737339039701,-151.0,0.00021917,2]
[349632462,1737339039710,-501.68283196,0.00021917,2]
[349632463,1737339039720,-151.0,0.00021917,2]
[349632465,1737339039729,-151.0,0.00021917,2]
[349632467,1737339039738,-500.0,0.00021917,3]
[349632468,1737339039748,-500.0,0.00021917,3]
[349632470,1737339039768,-689.600803,0.00021917,2]
[349632472,1737339039782,-2806.01,0.00021917,3]
[349632474,1737339039791,-689.600803,0.00021917,2]
[349632475,1737339039801,-1976.39,0.00021917,3]
[349632477,1737339039812,-384.968193,0.00021917,2]
[349632479,1737339039822,-151.0,0.00021917,2]
[349632480,1737339039831,-384.968193,0.00021917,2]
[349632482,1737339039841,-503.63296108,0.00021917,3]
[349632484,1737339039852,-958.95,0.00021917,3]
[349632486,1737339039862,-1181.84695035,0.00022003,3]
[349632487,1737339039872,-502.49491381,0.00022053,2]
[349632489,1737339039882,-151.0,0.00022053,7]
[349632491,1737339039892,-151.0,0.00022053,7]
[349632492,1737339039902,-151.0,0.00022053,7]
[349632494,1737339039912,-151.0,0.00022053,7]
[349632496,1737339039922,-534.43145,0.00022053,7]
[349632498,1737339039932,-534.43145,0.00022053,7]
[349632500,1737339039942,-151.0,0.00022053,7]
[349632502,1737339039952,-151.0,0.00022053,7]
[349632504,1737339039962,-159.5,0.00022054,2]
[349632505,1737339039972,-230.991269,0.00022054,7]
[349632507,1737339039982,-151.0,0.00022054,7]
[349632509,1737339039992,-151.0,0.00022054,7]
[349632510,1737339040002,-151.0,0.00022054,7]
[349632512,1737339040012,-151.0,0.00022054,7]
[349632514,1737339040022,-270.469717,0.00022054,7]
[349632516,1737339040032,-151.0,0.00022054,7]
[349632517,1737339040044,-151.0,0.00022054,7]
[349632519,1737339040055,-151.0,0.00022054,7]
[349632521,1737339040067,-525.71199314,0.00022054,2]
[349632522,1737339040078,-151.0,0.00022054,7]
[349632524,1737339040090,-151.0,0.00022054,7]
[349632526,1737339040101,-157.336131,0.00022054,7]
[349632527,1737339040114,-151.0,0.00022054,7]
[349632529,1737339040125,-163.349632,0.00022054,7]
[349632531,1737339040134,-163.349632,0.00022054,7]
[349632533,1737339040146,-151.0,0.00022054,7]
[349632535,1737339040156,-151.0,0.00022054,7]
[349632537,1737339040166,-151.0,0.00022054,7]
[349632539,1737339040175,-151.0,0.00022054,7]
[349632541,1737339040185,-151.0,0.00022054,7]
[349632543,1737339040195,-151.0,0.00022054,7]
[349632545,1737339040205,-151.938844,0.00022054,7]
[349632546,1737339040215,-151.0,0.00022054,7]
[349632547,1737339040225,-151.0,0.00022054,7]
[349632548,1737339040238,-152.502887,0.00022054,7]
[349632549,1737339040248,-541.14466,0.00022054,7]
[349632550,1737339040259,-541.14466,0.00022054,7]
[349632551,1737339040268,-541.14466,0.00022054,7]
[349632552,1737339040279,-541.14466,0.00022054,7]
[349632553,1737339040289,-151.0,0.00022054,7]
[349632554,1737339040299,-151.0,0.00022054,7]
[349632555,1737339040309,-229.534833,0.00022054,7]
[349632556,1737339040320,-229.534833,0.00022054,7]
[349632557,1737339040330,-229.534833,0.00022054,7]
[349632558,1737339040339,-229.534833,0.00022054,7]
[349632559,1737339040349,-722.743666,0.00022054,7]
[349632560,1737339040359,-511.838527,0.00022054,7]
[349632561,1737339040369,-722.743666,0.00022054,7]
[349632562,1737339040379,-511.838527,0.00022054,7]
[349632563,1737339040388,-500.0,0.00022054,2]
[349632564,1737339040398,-151.0,0.00022054,7]
[349632565,1737339040407,-500.0,0.00022054,3]
[349632566,1737339040417,-500.0,0.00022054,3]
[349632567,1737339040426,-1285.322888,0.00022054,7]
[349632568,1737339040436,-152.967226,0.00022054,7]
[349632569,1737339040447,-1285.322888,0.00022054,7]
[349632570,1737339040456,-4790.88,0.00022054,3]
[349632571,1737339040465,-151.0,0.00022054,7]
[349632572,1737339040473,-151.0,0.00022054,7]
[349632573,1737339040483,-534.43145,0.00022054,7]